Workbook

Sheet Лист1
D2: План-факт 20__год | BS2: =INDIRECT("Bs" & BS3+3) -> Май
BS3: 5
D4: НАИМЕНОВАНИЕ | E4: Январь | J4: Февраль | O4: Март | T4: Апрель | Y4: Май | AD4: Июнь | AI4: Июль | AN4: Август | AS4: Сентябрь | AX4: Октябрь | BC4: Ноябрь | BH4: Декабрь | BM4: Ожидаемое нарастающим итогом | BS4: Январь
E5: =IF(E3<=$BS$5,"ПП, тн.","-") -> ПП, тн. | F5: =IF(F3<=$BS$5,"ПЗ, тн.","-") -> ПЗ, тн. | G5: =IF(G3<=$BS$5,"Факт, тн.","-") -> Факт, тн. | H5: =IF(H3<=$BS$5,"Откл. от ПП, тн.","-") -> Откл. от ПП, тн. | I5: =IF(I3<=$BS$5,"Откл. от ПЗ, тн.","-") -> Откл. от ПЗ, тн. | J5: =IF(J3<=$BS$5,"ПП, тн.","-") -> ПП, тн. | K5: =IF(K3<=$BS$5,"ПЗ, тн.","-") -> ПЗ, тн. | L5: =IF(L3<=$BS$5,"Факт, тн.","-") -> Факт, тн. | M5: =IF(M3<=$BS$5,"Откл. от ПП, тн.","-") -> Откл. от ПП, тн. | N5: =IF(N3<=$BS$5,"Откл. от ПЗ, тн.","-") -> Откл. от ПЗ, тн. | O5: =IF(O3<=$BS$5,"ПП, тн.","-") -> ПП, тн. | P5: =IF(P3<=$BS$5,"ПЗ, тн.","-") -> ПЗ, тн. | Q5: =IF(Q3<=$BS$5,"Факт, тн.","-") -> Факт, тн. | R5: =IF(R3<=$BS$5,"Откл. от ПП, тн.","-") -> Откл. от ПП, тн. | S5: =IF(S3<=$BS$5,"Откл. от ПЗ, тн.","-") -> Откл. от ПЗ, тн. | T5: =IF(T3<=$BS$5,"ПП, тн.","-") -> ПП, тн. | U5: =IF(U3<=$BS$5,"ПЗ, тн.","-") -> ПЗ, тн. | V5: =IF(V3<=$BS$5,"Факт, тн.","-") -> Факт, тн. | W5: =IF(W3<=$BS$5,"Откл. от ПП, тн.","-") -> Откл. от ПП, тн. | X5: =IF(X3<=$BS$5,"Откл. от ПЗ, тн.","-") -> Откл. от ПЗ, тн. | Y5: =IF(Y3<=$BS$5,"ПП, тн.","-") -> ПП, тн. | Z5: =IF(Z3<=$BS$5,"ПЗ, тн.","-") -> ПЗ, тн. | AA5: =IF(AA3<=$BS$5,"Факт, тн.","-") -> Факт, тн. | AB5: =IF(AB3<=$BS$5,"Откл. от ПП, тн.","-") -> Откл. от ПП, тн. | AC5: =IF(AC3<=$BS$5,"Откл. от ПЗ, тн.","-") -> Откл. от ПЗ, тн. | AD5: =IF(AD3<=$BS$5,"ПП, тн.","-") -> ПП, тн. | AE5: =IF(AE3<=$BS$5,"ПЗ, тн.","-") -> ПЗ, тн. | AF5: =IF(AF3<=$BS$5,"Факт, тн.","-") -> Факт, тн. | AG5: =IF(AG3<=$BS$5,"Откл. от ПП, тн.","-") -> Откл. от ПП, тн. | AH5: =IF(AH3<=$BS$5,"Откл. от ПЗ, тн.","-") -> Откл. от ПЗ, тн. | AI5: =IF(AI3<=$BS$5,"ПП, тн.","-") -> ПП, тн. | AJ5: =IF(AJ3<=$BS$5,"ПЗ, тн.","-") -> ПЗ, тн. | AK5: =IF(AK3<=$BS$5,"Факт, тн.","-") -> Факт, тн. | AL5: =IF(AL3<=$BS$5,"Откл. от ПП, тн.","-") -> Откл. от ПП, тн. | AM5: =IF(AM3<=$BS$5,"Откл. от ПЗ, тн.","-") -> Откл. от ПЗ, тн. | AN5: =IF(AN3<=$BS$5,"ПП, тн.","-") -> ПП, тн. | AO5: =IF(AO3<=$BS$5,"ПЗ, тн.","-") -> ПЗ, тн. | AP5: =IF(AP3<=$BS$5,"Факт, тн.","-") -> Факт, тн. | AQ5: =IF(AQ3<=$BS$5,"Откл. от ПП, тн.","-") -> Откл. от ПП, тн. | AR5: =IF(AR3<=$BS$5,"Откл. от ПЗ, тн.","-") -> Откл. от ПЗ, тн. | AS5: =IF(AS3<=$BS$5,"ПП, тн.","-") -> ПП, тн. | AT5: =IF(AT3<=$BS$5,"ПЗ, тн.","-") -> ПЗ, тн. | AU5: =IF(AU3<=$BS$5,"Факт, тн.","-") -> Факт, тн. | AV5: =IF(AV3<=$BS$5,"Откл. от ПП, тн.","-") -> Откл. от ПП, тн. | AW5: =IF(AW3<=$BS$5,"Откл. от ПЗ, тн.","-") -> Откл. от ПЗ, тн. | AX5: =IF(AX3<=$BS$5,"ПП, тн.","-") -> ПП, тн. | AY5: =IF(AY3<=$BS$5,"ПЗ, тн.","-") -> ПЗ, тн. | AZ5: =IF(AZ3<=$BS$5,"Факт, тн.","-") -> Факт, тн. | BA5: =IF(BA3<=$BS$5,"Откл. от ПП, тн.","-") -> Откл. от ПП, тн. | BB5: =IF(BB3<=$BS$5,"Откл. от ПЗ, тн.","-") -> Откл. от ПЗ, тн. | BC5: =IF(BC3<=$BS$5,"ПП, тн.","-") -> ПП, тн. | BD5: =IF(BD3<=$BS$5,"ПЗ, тн.","-") -> ПЗ, тн. | BE5: =IF(BE3<=$BS$5,"Факт, тн.","-") -> Факт, тн. | BF5: =IF(BF3<=$BS$5,"Откл. от ПП, тн.","-") -> Откл. от ПП, тн. | BG5: =IF(BG3<=$BS$5,"Откл. от ПЗ, тн.","-") -> Откл. от ПЗ, тн. | BH5: =IF(BH3<=$BS$5,"ПП, тн.","-") -> ПП, тн. | BI5: =IF(BI3<=$BS$5,"ПЗ, тн.","-") -> ПЗ, тн. | BJ5: =IF(BJ3<=$BS$5,"Факт, тн.","-") -> Факт, тн. | BK5: =IF(BK3<=$BS$5,"Откл. от ПП, тн.","-") -> Откл. от ПП, тн. | BL5: =IF(BL3<=$BS$5,"Откл. от ПЗ, тн.","-") -> Откл. от ПЗ, тн. | BM5: ПП, тн. | BN5: ПЗ, тн. | BO5: Факт, тн. | BP5: Откл. от ПП, тн. | BQ5: Откл. от ПЗ, тн. | BS5: Февраль
E6: Столбец1 | F6: Столбец2 | G6: Столбец3 | H6: Столбец4 | I6: Столбец5 | J6: Столбец6 | K6: Столбец7 | L6: Столбец8 | M6: Столбец9 | N6: Столбец10 | O6: Столбец11 | P6: Столбец12 | Q6: Столбец13 | R6: Столбец14 | S6: Столбец15 | T6: Столбец16 | U6: Столбец17 | V6: Столбец18 | W6: Столбец19 | X6: Столбец20 | Y6: Столбец21 | Z6: Столбец22 | AA6: Столбец23 | AB6: Столбец24 | AC6: Столбец25 | AD6: Столбец26 | AE6: Столбец27 | AF6: Столбец28 | AG6: Столбец29 | AH6: Столбец30 | AI6: Столбец31 | AJ6: Столбец32 | AK6: Столбец33 | AL6: Столбец34 | AM6: Столбец35 | AN6: Столбец36 | AO6: Столбец37 | AP6: Столбец38 | AQ6: Столбец39 | AR6: Столбец40 | AS6: Столбец41 | AT6: Столбец42 | AU6: Столбец43 | AV6: Столбец44 | AW6: Столбец45 | AX6: Столбец46 | AY6: Столбец47 | AZ6: Столбец48 | BA6: Столбец49 | BB6: Столбец50 | BC6: Столбец51 | BD6: Столбец52 | BE6: Столбец53 | BF6: Столбец54 | BG6: Столбец55 | BH6: Столбец56 | BI6: Столбец57 | BJ6: Столбец58 | BK6: Столбец59 | BL6: Столбец60 | BM6: Столбец61 | BN6: Столбец62 | BO6: Столбец63 | BP6: Столбец64 | BQ6: Столбец65 | BS6: Март
D7: Общие показатели | E7: 200 | F7: 0 | H7: =G7-E7 -> -200 | I7: =G7-F7 -> 0 | J7: 20770.362 | M7: =L7-J7 -> -20770.362 | N7: =L7-K7 -> 0 | O7: 31652.1424 | R7: =Q7-O7 -> -31652.1424 | S7: =Q7-P7 -> 0 | T7: 56124.80657 | W7: =V7-T7 -> -56124.80657 | X7: =V7-U7 -> 0 | Y7: 67224 | AB7: =AA7-Y7 -> -67224 | AC7: =AA7-Z7 -> 0 | AD7: 74725.79199 | AG7: =AF7-AD7 -> -74725.79199 | AH7: =AF7-AE7 -> 0 | AI7: 77207.10547 | AL7: =AK7-AI7 -> -77207.10547 | AM7: =AK7-AJ7 -> 0 | AN7: 1351.73999 | AQ7: =AP7-AN7 -> -1351.73999 | AR7: =AP7-AO7 -> 0 | AS7: 43467.73438 | AV7: =AU7-AS7 -> -43467.73438 | AW7: =AU7-AT7 -> 0 | AX7: 83001.63086 | BA7: =AZ7-AX7 -> -83001.63086 | BB7: =AZ7-AY7 -> 0 | BC7: 78754.83594 | BF7: =BE7-BC7 -> -78754.83594 | BG7: =BE7-BD7 -> 0 | BH7: 77207.49902 | BK7: =BJ7-BH7 -> -77207.49902 | BL7: =BJ7-BI7 -> 0 | BM7: =SUMIFS($E7:$BL7,$E$7:$BL$7,BM$7,$E$7:$BL$7,BM$7) -> 534480.1496 | BN7: =SUMIFS($E7:$BL7,$E$7:$BL$7,BN$7,$E$7:$BL$7,BN$7) -> 0 | BO7: 0 | BP7: -534480.1496 | BQ7: 0 | BS7: Апрель
D8: показатель 1 | E8: 0 | F8: 0 | H8: =G8-E8 -> 0 | I8: =G8-F8 -> 0 | J8: 20570.362 | M8: =L8-J8 -> -20570.362 | N8: =L8-K8 -> 0 | O8: 31652.1424 | R8: =Q8-O8 -> -31652.1424 | S8: =Q8-P8 -> 0 | T8: 56124.80657 | W8: =V8-T8 -> -56124.80657 | X8: =V8-U8 -> 0 | Y8: 67224 | AB8: =AA8-Y8 -> -67224 | AC8: =AA8-Z8 -> 0 | AD8: 61276 | AG8: =AF8-AD8 -> -61276 | AH8: =AF8-AE8 -> 0 | AI8: 61873.44922 | AL8: =AK8-AI8 -> -61873.44922 | AM8: =AK8-AJ8 -> 0 | AN8: 1351.73999 | AQ8: =AP8-AN8 -> -1351.73999 | AR8: =AP8-AO8 -> 0 | AS8: 38686.21484 | AV8: =AU8-AS8 -> -38686.21484 | AW8: =AU8-AT8 -> 0 | AX8: 65199 | BA8: =AZ8-AX8 -> -65199 | BB8: =AZ8-AY8 -> 0 | BC8: 61863 | BF8: =BE8-BC8 -> -61863 | BG8: =BE8-BD8 -> 0 | BH8: 62261.81641 | BK8: =BJ8-BH8 -> -62261.81641 | BL8: =BJ8-BI8 -> 0 | BM8: =SUMIFS($E8:$BL8,$E$7:$BL$7,BM$7,$E$7:$BL$7,BM$7) -> 465820.715 | BN8: 0 | BO8: 0 | BP8: -465820.715 | BQ8: 0 | BS8: Май
D9: показатель 2 | E9: 200 | F9: 0 | H9: -200 | I9: 0 | J9: 200 | M9: -200 | N9: 0 | O9: 0 | R9: 0 | S9: 0 | T9: 0 | W9: 0 | X9: 0 | Y9: 0 | AB9: 0 | AC9: 0 | AD9: 13449.79199 | AG9: -13449.79199 | AH9: 0 | AI9: 15333.65625 | AL9: -15333.65625 | AM9: 0 | AN9: 0 | AQ9: 0 | AR9: 0 | AS9: 4781.519531 | AV9: -4781.519531 | AW9: 0 | AX9: 17802.63086 | BA9: -17802.63086 | BB9: 0 | BC9: 16891.83594 | BF9: -16891.83594 | BG9: 0 | BH9: 14945.68262 | BK9: -14945.68262 | BL9: 0 | BM9: 68659.43457 | BN9: 0 | BO9: 0 | BP9: -68659.43457 | BQ9: 0 | BS9: Июнь
D10: показатель 3 | E10: 0 | F10: 0 | H10: 0 | I10: 0 | J10: 15568 | M10: -15568 | N10: 0 | O10: 29060.9424 | R10: -29060.9424 | S10: 0 | T10: 53244.80657 | W10: -53244.80657 | X10: 0 | Y10: 67224 | AB10: -67224 | AC10: 0 | AD10: 74725.77157 | AG10: -74725.77157 | AH10: 0 | AI10: 77207.08542 | AL10: -77207.08542 | AM10: 0 | AN10: 887.861545 | AQ10: -887.861545 | AR10: 0 | AS10: 43275.39779 | AV10: -43275.39779 | AW10: 0 | AX10: 83001.59366 | BA10: -83001.59366 | BB10: 0 | BC10: 78754.80088 | BF10: -78754.80088 | BG10: 0 | BH10: 77207.478 | BK10: -77207.478 | BL10: 0 | BM10: 522950.2598 | BN10: 0 | BO10: 0 | BP10: -522950.2598 | BQ10: 0 | BS10: Июль
D11: показатель 4 | E11: 0 | F11: 0 | H11: 0 | I11: 0 | J11: 15568 | L11: 0 | M11: -15568 | N11: 0 | O11: 29060.9424 | R11: -29060.9424 | S11: 0 | T11: 53244.80657 | W11: -53244.80657 | X11: 0 | Y11: 67224 | AB11: -67224 | AC11: 0 | AD11: 61276 | AG11: -61276 | AH11: 0 | AI11: 61873.44922 | AL11: -61873.44922 | AM11: 0 | AN11: 887.861545 | AQ11: -887.861545 | AR11: 0 | AS11: 38693.88383 | AV11: -38693.88383 | AW11: 0 | AX11: 65199 | BA11: -65199 | BB11: 0 | BC11: 61863 | BF11: -61863 | BG11: 0 | BH11: 62261.81641 | BK11: -62261.81641 | BL11: 0 | BM11: 454890.9436 | BN11: 0 | BO11: 0 | BP11: -454890.9436 | BQ11: 0 | BS11: Август
D12: показатель 5 | E12: 0 | F12: 0 | H12: 0 | I12: 0 | J12: 0 | M12: 0 | N12: 0 | O12: 0 | R12: 0 | S12: 0 | T12: 0 | W12: 0 | X12: 0 | Y12: 0 | AB12: 0 | AC12: 0 | AD12: 13449.77157 | AG12: -13449.77157 | AH12: 0 | AI12: 15333.63621 | AL12: -15333.63621 | AM12: 0 | AN12: 0 | AQ12: 0 | AR12: 0 | AS12: 4581.51396 | AV12: -4581.51396 | AW12: 0 | AX12: 17802.59366 | BA12: -17802.59366 | BB12: 0 | BC12: 16891.80088 | BF12: -16891.80088 | BG12: 0 | BH12: 14945.66159 | BK12: -14945.66159 | BL12: 0 | BM12: 68059.31628 | BN12: 0 | BO12: 0 | BP12: -68059.31628 | BQ12: 0 | BS12: Сентябрь
D13: показатель 6 | E13: 0 | F13: 0 | H13: 0 | I13: 0 | J13: 0 | M13: 0 | N13: 0 | O13: 0 | R13: 0 | S13: 0 | T13: 12.07072247 | W13: -12.07072247 | X13: 0 | Y13: 18.29333118 | AB13: -18.29333118 | AC13: 0 | AD13: 9.712148787 | AG13: -9.712148787 | AH13: 0 | AI13: 19.77963436 | AL13: -19.77963436 | AM13: 0 | AN13: 0 | AQ13: 0 | AR13: 0 | AS13: 7.837745485 | AV13: -7.837745485 | AW13: 0 | AX13: 20.24753661 | BA13: -20.24753661 | BB13: 0 | BC13: 19.59441773 | BF13: -19.59441773 | BG13: 0 | BH13: 19.38524889 | BK13: -19.38524889 | BL13: 0 | BM13: 107.5355366 | BN13: 0 | BO13: 0 | BP13: -107.5355366 | BQ13: 0 | BS13: Октябрь
D14: Итого | E14: 0 | F14: 0 | H14: 0 | I14: 0 | J14: 15568 | M14: -15568 | N14: 0 | O14: 29060.9424 | R14: -29060.9424 | S14: 0 | T14: 53244.80657 | W14: -53244.80657 | X14: 0 | Y14: 67224 | AB14: -67224 | AC14: 0 | AD14: 74725.79199 | AG14: -74725.79199 | AH14: 0 | AI14: 77207.10547 | AL14: -77207.10547 | AM14: 0 | AN14: 1351.73999 | AQ14: -1351.73999 | AR14: 0 | AS14: 43467.73438 | AV14: -43467.73438 | AW14: 0 | AX14: 83001.63086 | BA14: -83001.63086 | BB14: 0 | BC14: 78754.83594 | BF14: -78754.83594 | BG14: 0 | BH14: 77207.49902 | BK14: -77207.49902 | BL14: 0 | BM14: 523606.5876 | BN14: 0 | BO14: 0 | BP14: -523606.5876 | BQ14: 0 | BS14: Ноябрь
D15: * допсведения | E15: 0 | F15: 0 | H15: 0 | I15: 0 | J15: 28.34521147 | M15: -28.34521147 | N15: 0 | O15: 52.91229173 | R15: -52.91229173 | S15: 0 | T15: 183.7065523 | W15: -183.7065523 | X15: 0 | Y15: 267.9296312 | AB15: -267.9296312 | AC15: 0 | AD15: 282.9148769 | AG15: -282.9148769 | AH15: 0 | AI15: 292.3461046 | AL15: -292.3461046 | AM15: 0 | AN15: 79.21101362 | AQ15: -79.21101362 | AR15: 0 | AS15: 168.2148039 | AV15: -168.2148039 | AW15: 0 | AX15: 283.4772091 | BA15: -283.4772091 | BB15: 0 | BC15: 268.9743385 | BF15: -268.9743385 | BG15: 0 | BH15: 292.3461046 | BK15: -292.3461046 | BL15: 0 | BM15: 1908.032033 | BN15: 0 | BO15: 0 | BP15: -1908.032033 | BQ15: 0 | BS15: Декабрь
